Workbook

Sheet Comments
B4: In basic NOL use waterfall concepts | J4: 1. Change the NOL Used to Subtotal
C6: Begin with EBT rather than Tax
C8: Do one thing if negative (MAX(-EBT,0)
C9: Do another thing if positive (MAX(EBT,0)
C11: Limit the use of maximum MIN(MAX(EBT,0))
B13: With the loss of carryforward, the concept is more complex
C15: Use the offset function to go backward
C17: Problem is that do not lose if already used NOL
C19: Create an account that tracks the amount already used

Sheet NOL with Carryforward Period
B2: Tax Rate | F2: 0.2
B3: Maximum Carryforward Period before Expiration | F3: 3
F5: 1 | G5: 2 | H5: 3 | I5: 4 | J5: 5 | K5: 6 | L5: 7 | M5: 8 | N5: 9 | O5: 10 | P5: 11 | Q5: 12 | R5: 13
B6: Earnings Before Tax without NOL | F6: =F51 -> -200 | G6: =G51 -> -200 | H6: -200 | I6: -200 | J6: 200 | K6: 200 | L6: 200 | M6: 200 | N6: 200 | O6: 200 | P6: 200 | Q6: 200 | R6: 200
A8: NOL Balance
B10: NOL Balance
C11: Opening Balance | F11: =E16 -> 0 | G11: =F16 -> 200 | H11: 400 | I11: 600 | J11: 600 | K11: 200 | L11: 0 | M11: 0 | N11: 0 | O11: 0 | P11: 0 | Q11: 0 | R11: =Q16 -> 0 | T11: =show_formulaR(R11) -> < ---- =Q16
C12: Less: NOL Expired | F12: =F29 -> 0 | G12: =G29 -> 0 | H12: 0 | I12: 200 | J12: 200 | K12: 0 | L12: 0 | M12: 0 | N12: 0 | O12: 0 | P12: 0 | Q12: 0 | R12: 0 | T12: < ---- =R29
C13: NOL Sub-Total | F13: =F11-F12 -> 0 | G13: =G11-G12 -> 200 | H13: 400 | I13: 400 | J13: 400 | K13: 200 | L13: 0 | M13: 0 | N13: 0 | O13: 0 | P13: 0 | Q13: 0 | R13: 0 | T13: < ---- =R11-R12
C14: Add: NOL Created from Negative Income | F14: =MAX(-F6,0) -> 200 | G14: =MAX(-G6,0) -> 200 | H14: 200 | I14: 200 | J14: 0 | K14: 0 | L14: 0 | M14: 0 | N14: 0 | O14: 0 | P14: 0 | Q14: 0 | R14: 0 | T14: < ---- =MAX(-R6,0)
C15: Less: NOL Applied to Positive Income | F15: =MAX(MIN(F13,F6),0) -> 0 | G15: =MAX(MIN(G13,G6),0) -> 0 | H15: 0 | I15: 0 | J15: 200 | K15: 200 | L15: 0 | M15: 0 | N15: 0 | O15: 0 | P15: 0 | Q15: =MAX(MIN(Q13,Q6),0) -> 0 | R15: 0 | T15: < ---- =MAX(MIN(R13,R6),0)
C16: Closing Balance | F16: =F13+F14-F15 -> 200 | G16: =G13+G14-G15 -> 400 | H16: 600 | I16: 600 | J16: 200 | K16: 0 | L16: 0 | M16: 0 | N16: 0 | O16: 0 | P16: 0 | Q16: 0 | R16: 0 | T16: < ---- =R13+R14-R15
A18: Calculation of Expired NOL
B20: Calculation of Expired NOL
C21: NOL Expired without Adjustment | F21: =IF(F5>$F$3,OFFSET(F14,0,-$F$3),0) -> 0 | G21: 0 | H21: 0 | I21: =IF(I5>$F$3,OFFSET(I14,0,-$F$3),0) -> 200 | J21: 200 | K21: 200 | L21: 200 | M21: 0 | N21: 0 | O21: 0 | P21: =IF(P5>$F$3,OFFSET(P14,0,-$F$3),0) -> 0 | Q21: 0 | R21: 0 | T21: =show_formulaR(R21) -> < ---- =IF(R5>$F$3,OFFSET(R14,0,-$F$3),0)
C23: Accumulated Balance of NOL Previously Used
D24: Opening Balance | F24: =E27 -> 0 | G24: =F27 -> 0 | H24: =G27 -> 0 | I24: 0 | J24: 0 | K24: 200 | L24: 200 | M24: 0 | N24: 0 | O24: 0 | P24: 0 | Q24: 0 | R24: 0 | T24: =show_formulaR(R24) -> < ---- =Q27
D25: Add: NOL Used in Period, Not in NOL Expiration | F25: =F15 -> 0 | G25: 0 | H25: 0 | I25: 0 | J25: 200 | K25: 200 | L25: 0 | M25: 0 | N25: 0 | O25: 0 | P25: 0 | Q25: 0 | R25: 0 | T25: =show_formulaR(R25) -> < ---- =R15
D26: Less: Reduction in NOL for Expiration from NOL Used (vs OB) | F26: =MIN(F24,F21) -> 0 | G26: =MIN(G24,G21) -> 0 | H26: 0 | I26: =MIN(I24,I21) -> 0 | J26: =MIN(J24,J21) -> 0 | K26: 200 | L26: =MIN(L24,L21) -> 200 | M26: =MIN(M24,M21) -> 0 | N26: 0 | O26: 0 | P26: 0 | Q26: 0 | R26: 0 | T26: =show_formulaR(R26) -> < ---- =MIN(R24,R21)
D27: Closing Balance | F27: =F24+F25-F26 -> 0 | G27: =G24+G25-G26 -> 0 | H27: 0 | I27: =I24+I25-I26 -> 0 | J27: 200 | K27: 200 | L27: =L24+L25-L26 -> 0 | M27: 0 | N27: 0 | O27: 0 | P27: 0 | Q27: 0 | R27: 0 | T27: =show_formulaR(R27) -> < ---- =R24+R25-R26
D29: Expired NOL this Period Adjusted for Prior NOL Used | F29: =F21-F26 -> 0 | G29: =G21-G26 -> 0 | H29: 0 | I29: 200 | J29: =J21-J26 -> 200 | K29: 0 | L29: 0 | M29: =M21-M26 -> 0 | N29: 0 | O29: 0 | P29: 0 | Q29: 0 | R29: 0 | T29: =show_formulaR(R29) -> < ---- =R21-R26
A31: Final Tax Paid Calcuation
C32: Adjusted Tax Calculation
D33: Unadjusted EBT | F33: =F6 -> -200 | G33: =G6 -> -200 | H33: -200 | I33: -200 | J33: 200 | K33: 200 | L33: 200 | M33: 200 | N33: 200 | O33: 200 | P33: 200 | Q33: 200 | R33: 200
D34: Add: NOL Created | F34: =F14 -> 200 | G34: =G14 -> 200 | H34: 200 | I34: 200 | J34: 0 | K34: 0 | L34: 0 | M34: 0 | N34: 0 | O34: 0 | P34: 0 | Q34: 0 | R34: 0
D35: Less: NOL Used | F35: =F15 -> 0 | G35: =G15 -> 0 | H35: 0 | I35: 0 | J35: 200 | K35: 200 | L35: 0 | M35: 0 | N35: 0 | O35: 0 | P35: 0 | Q35: 0 | R35: 0
D36: Adjusted EBT | F36: =F6+F14-F15 -> 0 | G36: 0 | H36: 0 | I36: 0 | J36: 0 | K36: 0 | L36: 200 | M36: 200 | N36: 200 | O36: 200 | P36: 200 | Q36: 200 | R36: 200
D37: Taxes | F37: =F36*$F$2 -> 0 | G37: =G36*$F$2 -> 0 | H37: 0 | I37: 0 | J37: 0 | K37: 0 | L37: 40 | M37: 40 | N37: 40 | O37: 40 | P37: 40 | Q37: 40 | R37: 40
C42: Scenario Code | E42: 4
C46: EBT 1 | F46: -200 | G46: 80 | H46: -20 | I46: 40 | J46: 10 | K46: -20 | L46: 400 | M46: -20 | N46: -50 | O46: 10 | P46: 200 | Q46: 50 | R46: 15
C47: EBT 2 | F47: -200 | G47: 80 | H47: 80 | I47: 80 | J47: 80 | K47: 80 | L47: 80 | M47: 80 | N47: 80 | O47: 80 | P47: 80 | Q47: 80 | R47: 80
C48: EBT 3 | F48: -200 | G48: -200 | H48: -200 | I48: -200 | J48: -200 | K48: -200 | L48: -200 | M48: -200 | N48: -200 | O48: -200 | P48: -200 | Q48: -200 | R48: -200
C49: EBT 4 | F49: -200 | G49: -200 | H49: -200 | I49: -200 | J49: 200 | K49: 200 | L49: 200 | M49: 200 | N49: 200 | O49: 200 | P49: 200 | Q49: 200 | R49: 200
C51: =INDEX(C46:C49,$E$42) -> EBT 4 | F51: =INDEX(F46:F49,$E$42) -> -200 | G51: =INDEX(G46:G49,$E$42) -> -200 | H51: -200 | I51: -200 | J51: 200 | K51: 200 | L51: 200 | M51: 200 | N51: 200 | O51: 200 | P51: 200 | Q51: 200 | R51: 200

Sheet NOL in Model
B1: Tax Rate | E1: 0.275
E3: 1 | F3: =E3+1 -> 2 | G3: 3 | H3: 4 | I3: 5 | J3: 6 | K3: 7
B4: Book Income Statement
C5: EBT - Book | E5: -500 | F5: -300 | G5: 100 | H5: 200 | I5: 300 | J5: 400 | K5: 500
C6: Tax Expense | E6: =E5*Tax_Rate -> -137.5 | F6: =F5*Tax_Rate -> -82.5 | G6: 27.5 | H6: 55 | I6: 82.5 | J6: 110 | K6: 137.5 | M6: =show_formulaR(K6) -> < ---- =K5*Tax_Rate
C7: Net Income | E7: =E5-E6 -> -362.5 | F7: -217.5 | G7: 72.5 | H7: 145 | I7: 217.5 | J7: 290 | K7: 362.5
B9: Tax Calculation
C10: EBT - Book | E10: =E5 -> -500 | F10: =F5 -> -300 | G10: 100 | H10: 200 | I10: 300 | J10: 400 | K10: 500
C11: Less: Added Depreciation for Tax | E11: 100 | F11: 100 | G11: 100 | H11: -100 | I11: -100 | J11: -100 | K11: 0
C12: EBT - Tax | E12: =E10-E11 -> -600 | F12: =F10-F11 -> -400 | G12: 0 | H12: 300 | I12: 400 | J12: 500 | K12: 500
B14: NOL Balance
C15: Opening Balance | E15: =D18 -> 0 | F15: =E18 -> 600 | G15: 1000 | H15: 1000 | I15: 700 | J15: 300 | K15: 0
C16: Add: Tax Losses | E16: =MAX(-E12,0) -> 600 | F16: 400 | G16: 0 | H16: 0 | I16: 0 | J16: 0 | K16: 0 | M16: =show_formulaR(K16) -> < ---- =MAX(-K12,0)
C17: Less: Used NOL | E17: =IF(E12>0,MIN(E15,E12),0) -> 0 | F17: =IF(F12>0,MIN(F15,F12),0) -> 0 | G17: 0 | H17: 300 | I17: 400 | J17: 300 | K17: 0 | M17: =show_formulaR(K17) -> < ---- =IF(K12>0,MIN(K15,K12),0)
C18: Closing Balance | E18: =E15+E16-E17 -> 600 | F18: 1000 | G18: 1000 | H18: 700 | I18: 300 | J18: 0 | K18: 0
C20: Adjusted EBT | E20: =E12+E16-E17 -> 0 | F20: =F12+F16-F17 -> 0 | G20: 0 | H20: 0 | I20: 0 | J20: 200 | K20: 500 | M20: =show_formulaR(K20) -> < ---- =K12+K16-K17
C21: Taxes Paid | E21: =E20*Tax_Rate -> 0 | F21: 0 | G21: 0 | H21: 0 | I21: 0 | J21: 55 | K21: 137.5 | M21: =show_formulaR(K21) -> < ---- =K20*Tax_Rate
C23: Deferred Tax | E23: =E6-E21 -> -137.5 | F23: -82.5 | G23: 27.5 | H23: 55 | I23: 82.5 | J23: 55 | K23: 0 | M23: =show_formulaR(K23) -> < ---- =K6-K21
C24: Accumulated Deferred Tax | E24: =D24+E23 -> -137.5 | F24: =E24+F23 -> -220 | G24: -192.5 | H24: -137.5 | I24: -55 | J24: 0 | K24: 0 | M24: =show_formulaR(K24) -> < ---- =J24+K23
B26: Cash Flow
C27: Net Income | E27: =E7 -> -362.5 | F27: -217.5 | G27: 72.5 | H27: 145 | I27: 217.5 | J27: 290 | K27: 362.5
C28: Add: Deferred tax change | E28: =E23 -> -137.5 | F28: -82.5 | G28: 27.5 | H28: 55 | I28: 82.5 | J28: 55 | K28: 0
C29: Cash Flow | E29: =E27+E28 -> -500 | F29: -300 | G29: 100 | H29: 200 | I29: 300 | J29: 345 | K29: 362.5
C31: Asset | E31: =MAX(-E24,0) -> 137.5 | F31: 220 | G31: 192.5 | H31: 137.5 | I31: 55 | J31: 0 | K31: 0
C33: Equity | E33: =D33+E7 -> -362.5 | F33: -580 | G33: -507.5 | H33: -362.5 | I33: -145 | J33: 145 | K33: 507.5
C34: Borrowing | E34: =MAX(-E37,0) -> 500 | F34: 800 | G34: 700 | H34: 500 | I34: 200 | J34: 0 | K34: 0
E35: =E33+E34 -> 137.5 | F35: 220 | G35: 192.5 | H35: 137.5 | I35: 55 | J35: 145 | K35: 507.5
E37: =E33-E31 -> -500 | F37: -800 | G37: -700 | H37: -500 | I37: -200 | J37: 145 | K37: 507.5
C38: Cash Balance
C39: Open | E39: =D41 -> 0 | F39: =E41 -> -500 | G39: -800 | H39: -700 | I39: -500 | J39: -200 | K39: 145
C40: Add: Cash | E40: =E29 -> -500 | F40: -300 | G40: 100 | H40: 200 | I40: 300 | J40: 345 | K40: 362.5
C41: Closing Balance | E41: =E39+E40 -> -500 | F41: -800 | G41: -700 | H41: -500 | I41: -200 | J41: 145 | K41: 507.5

Sheet Sheet2

Sheet Sheet3
